[Event "*** Titled Tuesday Blitz"]
[Site "Chess.com"]
[Date "2021.02.02"]
[Round "6"]
[White "LileKoridze"]
[Black "fridaywins"]
[Result "1/2-1/2"]
[WhiteElo "2377"]
[BlackElo "2163"]
[TimeControl "180+1"]
[EndTime "11:08:41 PST"]
[Termination "Game drawn - insufficient material"]

1. d4 {[%clk 0:03:00.9]} 1... Nf6 {[%clk 0:02:59.3]} 2. c4 {[%clk 0:03:00.8]}
2... g6 {[%clk 0:02:59.5]} 3. Nc3 {[%clk 0:03:00.9]} 3... Bg7 {[%clk 0:02:57.3]}
4. e4 {[%clk 0:03:01.2]} 4... O-O {[%clk 0:02:58.2]} 5. Nf3 {[%clk 0:03:01.4]}
5... d6 {[%clk 0:02:58.6]} 6. Be2 {[%clk 0:03:01.8]} 6... e5 {[%clk 0:02:58.9]}
7. O-O {[%clk 0:03:02.1]} 7... Nc6 {[%clk 0:02:59.1]} 8. Be3 {[%clk 0:03:01.6]}
8... Ng4 {[%clk 0:02:52.9]} 9. Bg5 {[%clk 0:03:00.2]} 9... f6 {[%clk 0:02:51.1]}
10. Bc1 {[%clk 0:02:59.7]} 10... Nh6 {[%clk 0:02:26.3]} 11. c5 {[%clk
0:02:10.5]} 11... Nf7 {[%clk 0:02:19.7]} 12. cxd6 {[%clk 0:02:08]} 12... cxd6
{[%clk 0:02:19.2]} 13. Be3 {[%clk 0:01:35]} 13... f5 {[%clk 0:02:05.7]} 14. dxe5
{[%clk 0:01:31.8]} 14... dxe5 {[%clk 0:02:01.9]} 15. Qb3 {[%clk 0:01:20.9]}
15... Na5 {[%clk 0:01:49.5]} 16. Qc2 {[%clk 0:01:14.4]} 16... Qc7 {[%clk
0:01:35.4]} 17. Rfd1 {[%clk 0:00:26.2]} 17... f4 {[%clk 0:01:34.7]} 18. Bc1
{[%clk 0:00:26]} 18... Be6 {[%clk 0:01:34.7]} 19. Bd2 {[%clk 0:00:22.9]} 19...
Rac8 {[%clk 0:01:29.3]} 20. Be1 {[%clk 0:00:22.8]} 20... a6 {[%clk 0:01:25.2]}
21. Rac1 {[%clk 0:00:19.7]} 21... g5 {[%clk 0:01:25.1]} 22. h3 {[%clk 0:00:19]}
22... h5 {[%clk 0:01:24.5]} 23. Qa4 {[%clk 0:00:17.7]} 23... b5 {[%clk
0:01:15.9]} 24. Nxb5 {[%clk 0:00:15.5]} 24... axb5 {[%clk 0:01:16.2]} 25. Rxc7
{[%clk 0:00:10]} 25... bxa4 {[%clk 0:01:15.5]} 26. Bxa5 {[%clk 0:00:08.7]} 26...
g4 {[%clk 0:01:14.7]} 27. hxg4 {[%clk 0:00:08.2]} 27... hxg4 {[%clk 0:01:13.9]}
28. Ne1 {[%clk 0:00:08.3]} 28... Rxc7 {[%clk 0:01:13.5]} 29. Bxc7 {[%clk
0:00:07.9]} 29... Rc8 {[%clk 0:01:14.4]} 30. Ba5 {[%clk 0:00:08.1]} 30... Bxa2
{[%clk 0:01:13.3]} 31. Nd3 {[%clk 0:00:08.1]} 31... Bb3 {[%clk 0:01:12.9]} 32.
Rc1 {[%clk 0:00:08]} 32... Rxc1+ {[%clk 0:01:05]} 33. Nxc1 {[%clk 0:00:08.9]}
33... Be6 {[%clk 0:01:05.2]} 34. Bd3 {[%clk 0:00:08.4]} 34... Bf8 {[%clk
0:01:03]} 35. Bc3 {[%clk 0:00:08.6]} 35... Bc5 {[%clk 0:01:02.4]} 36. Kf1 {[%clk
0:00:08.5]} 36... Kg7 {[%clk 0:01:00.3]} 37. f3 {[%clk 0:00:08.7]} 37... gxf3
{[%clk 0:00:59.2]} 38. gxf3 {[%clk 0:00:09.6]} 38... Kf6 {[%clk 0:00:59.6]} 39.
Ke2 {[%clk 0:00:10.1]} 39... Ng5 {[%clk 0:00:58]} 40. Bb5 {[%clk 0:00:10]} 40...
a3 {[%clk 0:00:55.8]} 41. bxa3 {[%clk 0:00:09.8]} 41... Bxa3 {[%clk 0:00:56.7]}
42. Nd3 {[%clk 0:00:10.3]} 42... Bd6 {[%clk 0:00:56]} 43. Bc6 {[%clk 0:00:09.5]}
43... Bc4 {[%clk 0:00:55.1]} 44. Bd5 {[%clk 0:00:06.2]} 44... Bxd5 {[%clk
0:00:54]} 45. exd5 {[%clk 0:00:06.1]} 45... Kf5 {[%clk 0:00:54.9]} 46. Nb2
{[%clk 0:00:05.4]} 46... e4 {[%clk 0:00:54.1]} 47. fxe4+ {[%clk 0:00:04.6]}
47... Nxe4 {[%clk 0:00:55]} 48. Bd2 {[%clk 0:00:04.9]} 48... Nxd2 {[%clk
0:00:54]} 49. Kxd2 {[%clk 0:00:05.8]} 49... Ke4 {[%clk 0:00:53.9]} 50. Nd3
{[%clk 0:00:04.7]} 50... f3 {[%clk 0:00:53.1]} 51. Nf2+ {[%clk 0:00:05.1]} 51...
Kxd5 {[%clk 0:00:52.7]} 52. Ke3 {[%clk 0:00:05]} 52... Bc5+ {[%clk 0:00:53.6]}
53. Kxf3 {[%clk 0:00:05.5]} 1/2-1/2

[Event "*** Titled Tuesday Blitz"]
[Site "Chess.com"]
[Date "2021.02.02"]
[Round "6"]
[White "lucachess49"]
[Black "onnoelgersma"]
[Result "1-0"]
[WhiteElo "2336"]
[BlackElo "2460"]
[TimeControl "180+1"]
[EndTime "11:08:42 PST"]
[Termination "lucachess49 won by resignation"]

1. d4 {[%clk 0:03:00.9]} 1... d5 {[%clk 0:02:58.1]} 2. c4 {[%clk 0:03:01]} 2...
e6 {[%clk 0:02:57.9]} 3. Nc3 {[%clk 0:03:00]} 3... Nf6 {[%clk 0:02:57.9]} 4.
cxd5 {[%clk 0:02:58.6]} 4... exd5 {[%clk 0:02:58.8]} 5. Bg5 {[%clk 0:02:57.8]}
5... c6 {[%clk 0:02:57.2]} 6. e3 {[%clk 0:02:57.6]} 6... Bd6 {[%clk 0:02:56.3]}
7. Bd3 {[%clk 0:02:54.1]} 7... O-O {[%clk 0:02:56.7]} 8. Qc2 {[%clk 0:02:51.8]}
8... h6 {[%clk 0:02:57.2]} 9. Bh4 {[%clk 0:02:51.8]} 9... Re8 {[%clk 0:02:57.7]}
10. Nge2 {[%clk 0:02:51.4]} 10... a5 {[%clk 0:02:57.7]} 11. O-O-O {[%clk
0:02:42.1]} 11... Na6 {[%clk 0:02:56.9]} 12. Bf5 {[%clk 0:02:36.2]} 12... Bxf5
{[%clk 0:02:39.9]} 13. Qxf5 {[%clk 0:02:37.1]} 13... Qd7 {[%clk 0:02:40.1]} 14.
Qxd7 {[%clk 0:02:27]} 14... Nxd7 {[%clk 0:02:41]} 15. Rhe1 {[%clk 0:02:14]}
15... Nb6 {[%clk 0:02:37.8]} 16. Bg3 {[%clk 0:01:58.6]} 16... Bb4 {[%clk
0:02:25.5]} 17. a3 {[%clk 0:01:51.6]} 17... Bf8 {[%clk 0:02:22.2]} 18. Nf4
{[%clk 0:01:49.2]} 18... Nc4 {[%clk 0:02:04.1]} 19. Nd3 {[%clk 0:01:45.5]} 19...
Rad8 {[%clk 0:01:57.3]} 20. Ne5 {[%clk 0:01:38.5]} 20... Nd6 {[%clk 0:01:52.7]}
21. f3 {[%clk 0:01:34.5]} 21... f5 {[%clk 0:01:45.7]} 22. Ng6 {[%clk 0:01:32.8]}
22... Nc4 {[%clk 0:01:44.5]} 23. Nxf8 {[%clk 0:01:29.9]} 23... Rxf8 {[%clk
0:01:45.4]} 24. e4 {[%clk 0:01:29.4]} 24... fxe4 {[%clk 0:01:44.8]} 25. fxe4
{[%clk 0:01:30.3]} 25... dxe4 {[%clk 0:01:44.9]} 26. Rxe4 {[%clk 0:01:27.4]}
26... Rfe8 {[%clk 0:01:33.6]} 27. Rxe8+ {[%clk 0:01:18.4]} 27... Rxe8 {[%clk
0:01:34.5]} 28. d5 {[%clk 0:01:19.2]} 28... cxd5 {[%clk 0:01:33.9]} 29. Rxd5
{[%clk 0:01:17.7]} 29... Ne3 {[%clk 0:01:14.8]} 30. Rxa5 {[%clk 0:01:01.6]}
30... Nxg2 {[%clk 0:01:09.8]} 31. Rb5 {[%clk 0:01:01.9]} 31... h5 {[%clk
0:01:05.7]} 32. Rxh5 {[%clk 0:00:58.6]} 32... b6 {[%clk 0:01:00.9]} 33. b4
{[%clk 0:00:56]} 33... Rc8 {[%clk 0:00:41.5]} 34. Kb2 {[%clk 0:00:52.6]} 34...
Ne3 {[%clk 0:00:38.7]} 35. Nd5 {[%clk 0:00:40.1]} 35... Rc2+ {[%clk 0:00:17.3]}
36. Kb3 {[%clk 0:00:38.2]} 36... Re2 {[%clk 0:00:18.2]} 37. Re5 {[%clk
0:00:33.5]} 37... Nc2 {[%clk 0:00:11.1]} 38. Rxe2 {[%clk 0:00:29.6]} 38... Nd4+
{[%clk 0:00:11]} 39. Kc4 {[%clk 0:00:30.1]} 39... Nxe2 {[%clk 0:00:11.9]} 40.
Nxb6 {[%clk 0:00:29.6]} 40... Nxg3 {[%clk 0:00:07.2]} 41. hxg3 {[%clk
0:00:29.3]} 41... Nc7 {[%clk 0:00:08.1]} 42. a4 {[%clk 0:00:27]} 1-0

[Event "*** Titled Tuesday Blitz"]
[Site "Chess.com"]
[Date "2021.02.02"]
[Round "6"]
[White "IljaJoke"]
[Black "Eloist"]
[Result "0-1"]
[WhiteElo "2496"]
[BlackElo "2366"]
[TimeControl "180+1"]
[EndTime "11:08:43 PST"]
[Termination "Eloist won by checkmate"]

1. d4 {[%clk 0:03:00.9]} 1... e6 {[%clk 0:03:00.2]} 2. c4 {[%clk 0:03:00.3]}
2... Nf6 {[%clk 0:03:00.5]} 3. g3 {[%clk 0:02:59.9]} 3... d5 {[%clk 0:03:00]} 4.
Nf3 {[%clk 0:02:59.8]} 4... Be7 {[%clk 0:03:00]} 5. Bg2 {[%clk 0:02:59.8]} 5...
O-O {[%clk 0:03:00.1]} 6. O-O {[%clk 0:02:59.1]} 6... c6 {[%clk 0:03:00.5]} 7.
Qc2 {[%clk 0:02:58.9]} 7... Nbd7 {[%clk 0:03:00.5]} 8. Nbd2 {[%clk 0:02:57.6]}
8... b6 {[%clk 0:03:00.7]} 9. e4 {[%clk 0:02:54.9]} 9... dxc4 {[%clk 0:03:00.3]}
10. Nxc4 {[%clk 0:02:52.4]} 10... Bb7 {[%clk 0:03:00.3]} 11. Rd1 {[%clk
0:02:26.9]} 11... c5 {[%clk 0:02:58.4]} 12. dxc5 {[%clk 0:02:22]} 12... Bxe4
{[%clk 0:02:56.8]} 13. Qe2 {[%clk 0:02:17.6]} 13... Bxc5 {[%clk 0:02:52.9]} 14.
Nce5 {[%clk 0:02:09.3]} 14... Bd5 {[%clk 0:02:49.3]} 15. Nxd7 {[%clk 0:01:54.7]}
15... Qxd7 {[%clk 0:02:48.8]} 16. Be3 {[%clk 0:01:40]} 16... Bxe3 {[%clk
0:02:42.4]} 17. Qxe3 {[%clk 0:01:40.1]} 17... Qb7 {[%clk 0:02:40.9]} 18. Ne1
{[%clk 0:01:35.2]} 18... Bxg2 {[%clk 0:02:39.2]} 19. Nxg2 {[%clk 0:01:36.1]}
19... Rfd8 {[%clk 0:02:38.4]} 20. h3 {[%clk 0:01:30.7]} 20... h6 {[%clk
0:02:36.4]} 21. Nf4 {[%clk 0:01:22.9]} 21... Qe4 {[%clk 0:02:24.8]} 22. Qxe4
{[%clk 0:01:06.8]} 22... Nxe4 {[%clk 0:02:25.7]} 23. Nd3 {[%clk 0:01:04.5]}
23... Rd4 {[%clk 0:02:15.1]} 24. Ne5 {[%clk 0:01:00.5]} 24... Rad8 {[%clk
0:02:12.8]} 25. Rxd4 {[%clk 0:00:59.3]} 25... Rxd4 {[%clk 0:02:13.7]} 26. Rc1
{[%clk 0:00:59.3]} 26... f6 {[%clk 0:02:06.9]} 27. Nf3 {[%clk 0:00:52]} 27...
Rd7 {[%clk 0:01:47.3]} 28. Rc2 {[%clk 0:00:46]} 28... Kf7 {[%clk 0:01:44.9]} 29.
Kf1 {[%clk 0:00:45.2]} 29... g5 {[%clk 0:01:41.9]} 30. Ke2 {[%clk 0:00:42.4]}
30... Nc5 {[%clk 0:01:34.1]} 31. b4 {[%clk 0:00:41]} 31... Nd3 {[%clk
0:01:30.2]} 32. a3 {[%clk 0:00:39.3]} 32... Ke7 {[%clk 0:01:28.7]} 33. Ke3
{[%clk 0:00:29]} 33... e5 {[%clk 0:01:13.1]} 34. g4 {[%clk 0:00:24.7]} 34... Nf4
{[%clk 0:00:58.7]} 35. h4 {[%clk 0:00:17.5]} 35... Rd3+ {[%clk 0:00:48.1]} 36.
Ke4 {[%clk 0:00:17.1]} 36... Rxa3 {[%clk 0:00:46.9]} 37. h5 {[%clk 0:00:11.7]}
37... Ne6 {[%clk 0:00:40.4]} 38. Nd2 {[%clk 0:00:06.4]} 38... Ra4 {[%clk
0:00:31.7]} 39. Rb2 {[%clk 0:00:05.5]} 39... a5 {[%clk 0:00:31.3]} 40. Kf5
{[%clk 0:00:05]} 40... Kf7 {[%clk 0:00:26.4]} 41. Ne4 {[%clk 0:00:03.8]} 41...
Nd4# {[%clk 0:00:24.2]} 0-1

[Event "*** Titled Tuesday Blitz"]
[Site "Chess.com"]
[Date "2021.02.02"]
[Round "6"]
[White "sergiochess83"]
[Black "PotapovaM"]
[Result "1-0"]
[WhiteElo "2852"]
[BlackElo "2640"]
[TimeControl "180+1"]
[EndTime "11:08:44 PST"]
[Termination "sergiochess83 won by checkmate"]

1. e4 {[%clk 0:03:00.9]} 1... c5 {[%clk 0:02:58]} 2. Nf3 {[%clk 0:03:00.1]} 2...
d6 {[%clk 0:02:58.7]} 3. d4 {[%clk 0:03:00.1]} 3... cxd4 {[%clk 0:02:59.6]} 4.
Nxd4 {[%clk 0:03:00.8]} 4... Nf6 {[%clk 0:03:00.2]} 5. Nc3 {[%clk 0:03:01.4]}
5... a6 {[%clk 0:03:00.9]} 6. a4 {[%clk 0:03:01.5]} 6... g6 {[%clk 0:02:49.6]}
7. Be2 {[%clk 0:02:59.2]} 7... Bg7 {[%clk 0:02:49.6]} 8. Be3 {[%clk 0:02:59.8]}
8... O-O {[%clk 0:02:50.3]} 9. O-O {[%clk 0:03:00.1]} 9... Nc6 {[%clk 0:02:50]}
10. Qd2 {[%clk 0:03:00.6]} 10... Bd7 {[%clk 0:02:49.2]} 11. Rfd1 {[%clk
0:03:00.7]} 11... Rc8 {[%clk 0:02:49.3]} 12. Nxc6 {[%clk 0:02:57.9]} 12... Bxc6
{[%clk 0:02:46.5]} 13. f3 {[%clk 0:02:56.3]} 13... Qc7 {[%clk 0:02:36.8]} 14. a5
{[%clk 0:02:49.8]} 14... Bd7 {[%clk 0:02:07.6]} 15. Bb6 {[%clk 0:02:12.2]} 15...
Qb8 {[%clk 0:01:26.3]} 16. Bd4 {[%clk 0:02:07.4]} 16... Be6 {[%clk 0:01:25.5]}
17. Na4 {[%clk 0:01:53.7]} 17... Nd7 {[%clk 0:01:22.9]} 18. Bxg7 {[%clk
0:01:38.7]} 18... Kxg7 {[%clk 0:01:23.8]} 19. Qd4+ {[%clk 0:01:39.2]} 19... f6
{[%clk 0:01:23.9]} 20. c4 {[%clk 0:01:39.2]} 20... Qc7 {[%clk 0:01:19]} 21. b4
{[%clk 0:01:38.9]} 21... Ne5 {[%clk 0:01:06.2]} 22. Nb6 {[%clk 0:01:37.4]} 22...
Rcd8 {[%clk 0:01:06]} 23. f4 {[%clk 0:01:32.5]} 23... Nd7 {[%clk 0:00:47.3]} 24.
Nd5 {[%clk 0:01:29.8]} 24... Bxd5 {[%clk 0:00:46.2]} 25. exd5 {[%clk 0:01:30.7]}
25... Kg8 {[%clk 0:00:34.8]} 26. Ra3 {[%clk 0:01:25.6]} 26... f5 {[%clk
0:00:28.2]} 27. Re3 {[%clk 0:01:14.1]} 27... Nf6 {[%clk 0:00:28.2]} 28. Bd3
{[%clk 0:01:08.2]} 28... Rf7 {[%clk 0:00:18]} 29. Rde1 {[%clk 0:01:08.3]} 29...
Rb8 {[%clk 0:00:17.4]} 30. c5 {[%clk 0:00:48.2]} 30... dxc5 {[%clk 0:00:12.6]}
31. bxc5 {[%clk 0:00:49.1]} 31... Rd8 {[%clk 0:00:13.1]} 32. Bc4 {[%clk
0:00:45.5]} 32... Kg7 {[%clk 0:00:09.6]} 33. d6 {[%clk 0:00:39]} 33... exd6
{[%clk 0:00:09.9]} 34. Bxf7 {[%clk 0:00:39.1]} 34... dxc5 {[%clk 0:00:09.1]} 35.
Qc4 {[%clk 0:00:31.2]} 35... Rd4 {[%clk 0:00:07.5]} 36. Qa2 {[%clk 0:00:31.2]}
36... Ne4 {[%clk 0:00:05]} 37. Bd5 {[%clk 0:00:28.2]} 37... Rd2 {[%clk
0:00:04.1]} 38. Qa1+ {[%clk 0:00:26.4]} 38... Kh6 {[%clk 0:00:02.6]} 39. Bxe4
{[%clk 0:00:26.2]} 39... fxe4 {[%clk 0:00:02.3]} 40. Rh3# {[%clk 0:00:25.9]} 1-0

[Event "*** Titled Tuesday Blitz"]
[Site "Chess.com"]
[Date "2021.02.02"]
[Round "6"]
[White "BlueWizzard"]
[Black "chessablanca"]
[Result "1-0"]
[WhiteElo "2763"]
[BlackElo "2503"]
[TimeControl "180+1"]
[EndTime "11:08:47 PST"]
[Termination "BlueWizzard won by resignation"]

1. d4 {[%clk 0:03:00.9]} 1... Nf6 {[%clk 0:02:41]} 2. g4 {[%clk 0:03:00]} 2...
Nxg4 {[%clk 0:02:38.6]} 3. e4 {[%clk 0:02:59.7]} 3... Nf6 {[%clk 0:02:38.5]} 4.
e5 {[%clk 0:02:59.7]} 4... Ng8 {[%clk 0:02:38]} 5. Nc3 {[%clk 0:02:58.4]} 5...
d6 {[%clk 0:02:38.3]} 6. Bf4 {[%clk 0:02:58.2]} 6... dxe5 {[%clk 0:02:33.8]} 7.
dxe5 {[%clk 0:02:56.2]} 7... Qxd1+ {[%clk 0:02:28.2]} 8. Rxd1 {[%clk 0:02:57.1]}
8... Be6 {[%clk 0:02:19.7]} 9. Nf3 {[%clk 0:02:46.4]} 9... c6 {[%clk 0:01:57.9]}
10. Nd4 {[%clk 0:02:44.7]} 10... Bg4 {[%clk 0:01:54.8]} 11. f3 {[%clk
0:02:43.7]} 11... Bd7 {[%clk 0:01:53.9]} 12. e6 {[%clk 0:02:39]} 12... fxe6
{[%clk 0:01:53.8]} 13. Ne4 {[%clk 0:02:34.8]} 13... Nf6 {[%clk 0:01:50.7]} 14.
Ng5 {[%clk 0:02:35]} 14... Na6 {[%clk 0:01:04.7]} 15. Bc4 {[%clk 0:02:27.1]}
15... Nd5 {[%clk 0:01:03.2]} 16. Be5 {[%clk 0:02:26.9]} 16... Nc5 {[%clk
0:00:58.5]} 17. Kf2 {[%clk 0:02:22.3]} 17... h6 {[%clk 0:00:58.2]} 18. Ne4
{[%clk 0:02:20.6]} 18... Nxe4+ {[%clk 0:00:56.8]} 19. fxe4 {[%clk 0:02:21.5]}
19... Nf6 {[%clk 0:00:57.3]} 20. Kf3 {[%clk 0:02:21.1]} 20... g5 {[%clk
0:00:56.6]} 21. Bxe6 {[%clk 0:02:14.3]} 21... Bxe6 {[%clk 0:00:55.4]} 22. Nxe6
{[%clk 0:02:15.2]} 22... Kf7 {[%clk 0:00:55.4]} 23. Nc5 {[%clk 0:02:13]} 23...
Bg7 {[%clk 0:00:53.8]} 24. Nxb7 {[%clk 0:02:10.7]} 24... g4+ {[%clk 0:00:47.9]}
25. Kg2 {[%clk 0:02:10.6]} 25... Nxe4 {[%clk 0:00:41.6]} 26. Bxg7 {[%clk
0:02:09.2]} 26... Kxg7 {[%clk 0:00:41.5]} 27. Rhe1 {[%clk 0:02:07.6]} 27... Nf6
{[%clk 0:00:40.3]} 28. Rxe7+ {[%clk 0:02:07]} 28... Kg6 {[%clk 0:00:41]} 29. Rd6
{[%clk 0:02:06.1]} 29... Rhe8 {[%clk 0:00:40.2]} 30. Rde6 {[%clk 0:01:58.7]}
30... Rxe7 {[%clk 0:00:37.7]} 31. Rxe7 {[%clk 0:01:59.6]} 31... Re8 {[%clk
0:00:34.2]} 32. Rxe8 {[%clk 0:01:58.3]} 32... Nxe8 {[%clk 0:00:35.1]} 33. Na5
{[%clk 0:01:57.4]} 33... c5 {[%clk 0:00:35.3]} 34. Nc6 {[%clk 0:01:57.5]} 34...
a6 {[%clk 0:00:34.6]} 35. Nb8 {[%clk 0:01:56]} 35... Nc7 {[%clk 0:00:33.2]} 36.
Nd7 {[%clk 0:01:56.3]} 36... Ne6 {[%clk 0:00:32.6]} 37. c3 {[%clk 0:01:49.3]}
37... Kf5 {[%clk 0:00:31.6]} 38. b4 {[%clk 0:01:49.4]} 38... cxb4 {[%clk
0:00:30.3]} 39. cxb4 {[%clk 0:01:50.3]} 39... Nf4+ {[%clk 0:00:28.9]} 40. Kg3
{[%clk 0:01:48.4]} 40... Nd3 {[%clk 0:00:26.5]} 41. a3 {[%clk 0:01:47.7]} 41...
Nb2 {[%clk 0:00:26.3]} 42. Nc5 {[%clk 0:01:46.8]} 42... Nc4 {[%clk 0:00:25.9]}
43. a4 {[%clk 0:01:45.4]} 43... a5 {[%clk 0:00:26.2]} 44. b5 {[%clk 0:01:38.9]}
44... Kg5 {[%clk 0:00:23.6]} 45. Ne6+ {[%clk 0:01:33.9]} 45... Kf5 {[%clk
0:00:23.2]} 46. Nd4+ {[%clk 0:01:34.2]} 46... Ke4 {[%clk 0:00:18.9]} 47. Nc6
{[%clk 0:01:33.7]} 47... Kf5 {[%clk 0:00:19.3]} 48. Kh4 {[%clk 0:01:33.1]} 48...
Kf4 {[%clk 0:00:18.7]} 49. Nd4 {[%clk 0:01:30.4]} 49... Nb6 {[%clk 0:00:15]} 50.
Nb3 {[%clk 0:01:30]} 50... Kf3 {[%clk 0:00:13.5]} 51. Nxa5 {[%clk 0:01:29]}
51... Nxa4 {[%clk 0:00:14]} 52. Nc4 {[%clk 0:01:29.5]} 52... Nc5 {[%clk
0:00:13.9]} 53. Ne5+ {[%clk 0:01:29.7]} 53... Kg2 {[%clk 0:00:14.1]} 54. Nxg4
{[%clk 0:01:29.7]} 54... Kf3 {[%clk 0:00:10.5]} 55. Kh5 {[%clk 0:01:27.5]} 55...
Ke4 {[%clk 0:00:10.8]} 56. Kxh6 {[%clk 0:01:26.6]} 56... Kd4 {[%clk 0:00:11.5]}
57. b6 {[%clk 0:01:25.8]} 57... Kc4 {[%clk 0:00:12.1]} 58. Kg7 {[%clk
0:01:22.7]} 58... Kb5 {[%clk 0:00:11.9]} 59. Kf7 {[%clk 0:01:21]} 59... Kxb6
{[%clk 0:00:11.5]} 60. h4 {[%clk 0:01:21.7]} 60... Ne4 {[%clk 0:00:09.6]} 61. h5
{[%clk 0:01:21.9]} 61... Kc5 {[%clk 0:00:06.4]} 62. h6 {[%clk 0:01:21.6]} 62...
Ng5+ {[%clk 0:00:03.4]} 63. Ke7 {[%clk 0:01:22]} 63... Kd5 {[%clk 0:00:03.3]}
64. Kf6 {[%clk 0:01:21.1]} 64... Nh7+ {[%clk 0:00:03.5]} 65. Kg6 {[%clk
0:01:21.2]} 65... Nf8+ {[%clk 0:00:03.8]} 66. Kg7 {[%clk 0:01:21.8]} 66... Ne6+
{[%clk 0:00:04.3]} 67. Kf6 {[%clk 0:01:21.8]} 67... Nf8 {[%clk 0:00:04.5]} 68.
Ke7 {[%clk 0:01:22.2]} 68... Ng6+ {[%clk 0:00:04.9]} 69. Kf7 {[%clk 0:01:21.6]}
69... Nf4 {[%clk 0:00:01.2]} 70. h7 {[%clk 0:01:21.2]} 70... Nh3 {[%clk
0:00:01.7]} 71. h8=Q {[%clk 0:01:20.6]} 71... Ng5+ {[%clk 0:00:02.6]} 72. Ke8
{[%clk 0:01:20.8]} 72... Ne6 {[%clk 0:00:03.5]} 1-0

[Event "*** Titled Tuesday Blitz"]
[Site "Chess.com"]
[Date "2021.02.02"]
[Round "6"]
[White "Cambek64"]
[Black "GameOverBro"]
[Result "0-1"]
[WhiteElo "2281"]
[BlackElo "2438"]
[TimeControl "180+1"]
[EndTime "11:08:48 PST"]
[Termination "GameOverBro won by resignation"]

1. e3 {[%clk 0:02:06.2]} 1... g6 {[%clk 0:02:56.1]} 2. d4 {[%clk 0:02:05.1]}
2... Bg7 {[%clk 0:02:56.5]} 3. c4 {[%clk 0:02:05.5]} 3... Nf6 {[%clk 0:02:53]}
4. Nc3 {[%clk 0:02:06.4]} 4... O-O {[%clk 0:02:53.2]} 5. Nf3 {[%clk 0:02:06.5]}
5... c5 {[%clk 0:02:53.2]} 6. d5 {[%clk 0:02:05.7]} 6... e6 {[%clk 0:02:53.3]}
7. e4 {[%clk 0:02:06.1]} 7... exd5 {[%clk 0:02:53.5]} 8. exd5 {[%clk 0:02:06.4]}
8... Re8+ {[%clk 0:02:52.1]} 9. Be2 {[%clk 0:02:06.9]} 9... d6 {[%clk
0:02:52.2]} 10. O-O {[%clk 0:02:07]} 10... Ne4 {[%clk 0:02:49.8]} 11. Nxe4
{[%clk 0:02:04.6]} 11... Rxe4 {[%clk 0:02:50.7]} 12. Bd3 {[%clk 0:02:05]} 12...
Re8 {[%clk 0:02:51.1]} 13. Bg5 {[%clk 0:02:02.7]} 13... f6 {[%clk 0:02:40.9]}
14. Bd2 {[%clk 0:02:00.3]} 14... Nd7 {[%clk 0:02:40.1]} 15. h3 {[%clk
0:01:59.6]} 15... Ne5 {[%clk 0:02:39.7]} 16. Nxe5 {[%clk 0:01:59.5]} 16... fxe5
{[%clk 0:02:38.4]} 17. Be4 {[%clk 0:01:58.1]} 17... Rf8 {[%clk 0:02:38]} 18. Qc2
{[%clk 0:01:57.9]} 18... a6 {[%clk 0:02:35.7]} 19. a4 {[%clk 0:01:56.4]} 19...
Qh4 {[%clk 0:02:35]} 20. f3 {[%clk 0:01:45.9]} 20... Rf7 {[%clk 0:02:20.3]} 21.
Be1 {[%clk 0:01:39.8]} 21... Qe7 {[%clk 0:02:15.9]} 22. a5 {[%clk 0:01:35.8]}
22... Bh6 {[%clk 0:02:15.4]} 23. Bd2 {[%clk 0:01:23.1]} 23... Qh4 {[%clk
0:02:11.4]} 24. Bxh6 {[%clk 0:01:20.6]} 24... Qxh6 {[%clk 0:02:11]} 25. Qc1
{[%clk 0:01:21.3]} 25... Qh4 {[%clk 0:02:07.8]} 26. Qe1 {[%clk 0:01:17]} 26...
Qf4 {[%clk 0:02:02.2]} 27. Qc1 {[%clk 0:01:16.5]} 27... Qg3 {[%clk 0:01:59.3]}
28. Qe1 {[%clk 0:01:14.2]} 28... Qg5 {[%clk 0:01:57.3]} 29. Qc1 {[%clk
0:01:13.5]} 29... Qe7 {[%clk 0:01:52.1]} 30. b4 {[%clk 0:01:10]} 30... cxb4
{[%clk 0:01:50.5]} 31. Qd2 {[%clk 0:01:05.1]} 31... Qc7 {[%clk 0:01:34.4]} 32.
Qxb4 {[%clk 0:01:04.7]} 32... Bd7 {[%clk 0:01:34.7]} 33. Rfc1 {[%clk 0:01:02.9]}
33... Rc8 {[%clk 0:01:33.3]} 34. Rab1 {[%clk 0:01:01.2]} 34... Be8 {[%clk
0:01:30]} 35. Qb6 {[%clk 0:00:58.2]} 35... Qe7 {[%clk 0:01:26.3]} 36. c5 {[%clk
0:00:56.2]} 36... Qg5 {[%clk 0:01:21.9]} 37. c6 {[%clk 0:00:51.2]} 37... bxc6
{[%clk 0:01:15.2]} 38. dxc6 {[%clk 0:00:51.1]} 38... Rfc7 {[%clk 0:01:14.9]} 39.
Qxa6 {[%clk 0:00:40.9]} 39... Kg7 {[%clk 0:01:07]} 40. Qb6 {[%clk 0:00:35]}
40... Qd2 {[%clk 0:01:05.9]} 41. Rd1 {[%clk 0:00:30.4]} 41... Qa2 {[%clk
0:00:53.9]} 42. Rxd6 {[%clk 0:00:27.7]} 42... Kh6 {[%clk 0:00:41.1]} 43. Rb2
{[%clk 0:00:26.9]} 43... Qa3 {[%clk 0:00:39.1]} 44. Kh2 {[%clk 0:00:26.7]} 44...
Qxd6 {[%clk 0:00:38]} 45. Qe3+ {[%clk 0:00:21.9]} 45... Kg7 {[%clk 0:00:37.3]}
46. Rd2 {[%clk 0:00:22.5]} 46... Qb4 {[%clk 0:00:33.6]} 47. Bd5 {[%clk
0:00:18.6]} 47... Qf4+ {[%clk 0:00:31.8]} 48. Qxf4 {[%clk 0:00:18.7]} 48... exf4
{[%clk 0:00:32.7]} 0-1